[Event "4th Baskent University Open 2019"]
[Site "Ankara"]
[Date "2019.06.22"]
[Round "9"]
[White "Yanikoglu, Omer"]
[Black "Sabahi, Cem"]
[Result "0-1"]
[ECO "E90"]
[WhiteElo "1665"]
[BlackElo "1641"]
[Annotator "NA"]
[PlyCount "132"]
[EventDate "2019.06.18"]
[EventType "swiss"]
[EventCountry "TUR"]
[SourceTitle "playchess.com"]
[Source "ChessBase"]
[SourceQuality "1"]
[TimeControl "5400+30"]

1. Nf3 g6 2. d4 Bg7 3. c4 d6 4. Nc3 Nd7 5. e4 e5 6. Bg5 Ngf6 7. dxe5 dxe5 8. Be2 c6 9. O-O Qe7 10. Qc2 h6 11. Be3 O-O 12. Rfd1 Nh5 13. Qd2 Nf4 14. Bxf4 exf4 15. Qxf4 Nc5 16. Rac1 Re8 17. Bf1 g5 18. Qd6 Qxd6 19. Rxd6 Bxc3 20. bxc3 Nxe4 21. Rd4 c5 22. Rd5 f6 23. Bd3 b6 24. Re1 f5 25. g4 Nf6 26. Rxe8+ Nxe8 27. Bxf5 Bb7 28. Rd3 Ng7 29. Bg6 Ne6 30. Ne5 Nf4 31. Bf7+ Kg7 32. Rd6 Rf8 33. Bh5 Be4 34. f3 Bb1 35. a4 Bc2 36. a5 bxa5 37. Ra6 a4 38. Rxa7+ Kh8 39. Nf7+ Kg7 40. Nxg5+ Kf6 41. Ne4+ Bxe4 42. fxe4 Ne2+ 43. Kf2 Nxc3 44. Ke3 Rd8 45. h4 Rd4 46. Ra6+ Ke7 47. e5 Nd1+ 48. Ke2 Nb2 49. Rxh6 Nxc4 50. e6 a3 51. Rh7+ Kxe6 52. Bf7+ Kd6 53. Bxc4 Rxc4 54. Ra7 Rxg4 55. h5 a2 56. Kf3 Rh4 57. Rxa2 Kd5 58. Ra8 Rxh5 59. Ke3 Kc4 60. Kd2 Rh2+ 61. Kc1 Kc3 62. Ra3+ Kb4 63. Rg3 c4 64. Rg1 Kb3 65. Rg3+ c3 66. Rg1 Ra2 0-1

[Event "4th Baskent University Open 2019"]
[Site "Ankara"]
[Date "2019.06.22"]
[Round "9"]
[White "Bingologlu, Furkan"]
[Black "Shapovalovi, Vasiko"]
[Result "1/2-1/2"]
[ECO "B01"]
[WhiteElo "1652"]
[BlackElo "1759"]
[Annotator "NA"]
[PlyCount "74"]
[EventDate "2019.06.18"]
[EventType "swiss"]
[EventCountry "TUR"]
[SourceTitle "playchess.com"]
[Source "ChessBase"]
[SourceQuality "1"]
[TimeControl "5400+30"]

1. e4 {[%emt 0:06:30]} d5 {[%emt 0:00:30]} 2. exd5 {[%emt 0:00:00]} Qxd5 {[%emt 0:00:00]} 3. d4 {[%emt 0:01:00]} Nf6 {[%emt 0:00:00]} 4. Nf3 {[%emt 0:01:30]} c6 {[%emt 0:01:30]} 5. Be2 {[%emt 0:02:30]} Bf5 {[%emt 0:01:30]} 6. O-O {[%emt 0:01:30]} e6 {[%emt 0:00:30]} 7. c4 {[%emt 0:05:30]} Qd8 {[%emt 0:01:30]} 8. Nc3 {[%emt 0:05:30]} Bd6 {[%emt 0:04:30]} 9. Re1 {[%emt 0:02:30]} O-O {[%emt 0:05:30]} 10. Nh4 {[%emt 0:06:30]} Bg6 {[%emt 0:03:30]} 11. Nxg6 {[%emt 0:00:30]} hxg6 {[%emt 0:00:30]} 12. Bf3 {[%emt 0:06:30]} Nbd7 {[%emt 0:10:30]} 13. g3 {[%emt 0:08:30]} Bc7 {[%emt 0:07:30]} 14. Qb3 {[%emt 0:04:30]} Qc8 {[%emt 0:03:30]} 15. Bg5 {[%emt 0:02:30]} Nb6 {[%emt 0:02:30]} 16. Rad1 {[%emt 0:03:30]} Nh7 {[%emt 0:07:30]} 17. Be3 {[%emt 0:01:30]} Nf6 {[%emt 0:01:30]} 18. h4 {[%emt 0:01:30]} Rd8 {[%emt 0:08:30]} 19. Bg5 {[%emt 0:03:30]} Rd7 {[%emt 0:01:30]} 20. a4 {[%emt 0:01:30]} a5 {[%emt 0:02:30]} 21. Be3 {[%emt 0:01:30]} Qd8 {[%emt 0:01:30]} 22. Kg2 {[%emt 0:03:30]} Rb8 {[%emt 0:02:30]} 23. Re2 {[%emt 0:06:30]} Nc8 {[%emt 0:04:30]} 24. d5 {[%emt 0:03:53]} exd5 {[%emt 0:01:30]} 25. cxd5 {[%emt 0:00:54]} Ne7 {[%emt 0:00:30]} 26. Bg5 {[%emt 0:03:36]} Nexd5 {[%emt 0:05:30]} 27. Nxd5 {[%emt 0:01:35]} cxd5 {[%emt 0:00:30]} 28. Bxd5 {[%emt 0:01:47]} Qf8 {[%emt 0:01:30]} 29. Bxf6 {[%emt 0:01:59]} gxf6 {[%emt 0:00:30]} 30. Qf3 {[%emt 0:00:32]} Be5 {[%emt 0:00:30]} 31. b3 {[%emt 0:00:53]} Kg7 {[%emt 0:04:40]} 32. Rde1 {[%emt 0:04:15]} Qc5 {[%emt 0:03:11]} 33. Bc4 {[%emt 0:01:32]} Qc6 {[%emt 0:01:21]} 34. Qxc6 {[%emt 0:00:51]} bxc6 {[%emt 0:00:05]} 35. f4 {[%emt 0:00:24]} Bc3 {[%emt 0:00:17]} 36. Re7 {[%emt 0:01:11]} Rbb7 {[%emt 0:01:04]} 37. Bd5 {[%emt 0:01:27]} Kg8 {[%emt 0:00:30]} 1/2-1/2

[Event "4th Baskent University Open 2019"]
[Site "Ankara"]
[Date "2019.06.22"]
[Round "9"]
[White "Uysal, Ugur"]
[Black "Sariali, Furkan Anil"]
[Result "1-0"]
[ECO "D46"]
[WhiteElo "1644"]
[BlackElo "1749"]
[Annotator "NA"]
[PlyCount "55"]
[EventDate "2019.06.18"]
[EventType "swiss"]
[EventCountry "TUR"]
[SourceTitle "playchess.com"]
[Source "ChessBase"]
[SourceQuality "1"]
[TimeControl "5400+30"]

1. Nf3 {[%emt 0:00:30]} d5 {[%emt 0:07:30]} 2. d4 {[%emt 0:00:00]} c6 {[%emt 0:00:30]} 3. c4 {[%emt 0:00:00]} Nf6 {[%emt 0:00:30]} 4. Nc3 {[%emt 0:00:00]} e6 {[%emt 0:00:00]} 5. e3 {[%emt 0:00:00]} Nbd7 {[%emt 0:00:00]} 6. Qc2 {[%emt 0:00:30]} Be7 {[%emt 0:02:30]} 7. Bd3 {[%emt 0:00:30]} O-O {[%emt 0:00:30]} 8. O-O {[%emt 0:01:30]} a6 {[%emt 0:02:30]} 9. e4 {[%emt 0:03:30]} dxe4 {[%emt 0:01:30]} 10. Nxe4 {[%emt 0:01:30]} Nxe4 {[%emt 0:00:30]} 11. Bxe4 {[%emt 0:00:30]} Nf6 {[%emt 0:00:00]} 12. Bf4 {[%emt 0:03:30]} Nxe4 {[%emt 0:07:00]} 13. Qxe4 {[%emt 0:02:30]} Re8 {[%emt 0:06:30]} 14. h3 {[%emt 0:24:30]} f6 {[%emt 0:06:30]} 15. Rfd1 {[%emt 0:12:30]} Qd7 {[%emt 0:05:30]} 16. c5 {[%emt 0:02:30]} Qd5 {[%emt 0:00:30]} 17. Qe3 {[%emt 0:04:30]} g5 {[%emt 0:08:30]} 18. Bh2 {[%emt 0:02:30]} Kf7 {[%emt 0:01:30]} 19. b4 {[%emt 0:00:30]} Bd7 {[%emt 0:00:30]} 20. Qc3 {[%emt 0:10:30]} h5 {[%emt 0:02:30]} 21. Ne5+ {[%emt 0:02:30]} Kg7 {[%emt 0:09:30]} 22. Qc2 {[%emt 0:05:30]} f5 {[%emt 0:01:30]} 23. Nc4 {[%emt 0:04:07]} Bd8 {[%emt 0:01:30]} 24. Be5+ {[%emt 0:00:41]} Kh6 {[%emt 0:01:30]} 25. Re1 {[%emt 0:03:24]} Rg8 {[%emt 0:01:30]} 26. Ne3 {[%emt 0:00:12]} Qe4 {[%emt 0:01:30]} 27. Ng4+ {[%emt 0:00:00]} Qxg4 {[%emt 0:01:30]} 28. hxg4 {[%emt 0:00:00]} 1-0

[Event "4th Baskent University Open 2019"]
[Site "Ankara"]
[Date "2019.06.22"]
[Round "9"]
[White "Sungu, Yagiz Kaan"]
[Black "Kanli, Alperen"]
[Result "1/2-1/2"]
[ECO "D05"]
[WhiteElo "1465"]
[BlackElo "1790"]
[Annotator "NA"]
[PlyCount "59"]
[EventDate "2019.06.18"]
[EventType "swiss"]
[EventCountry "TUR"]
[SourceTitle "playchess.com"]
[Source "ChessBase"]
[SourceQuality "1"]
[TimeControl "5400+30"]

1. Nf3 {[%emt 0:00:30]} d5 {[%emt 0:00:30]} 2. e3 {[%emt 0:00:00]} Nf6 {[%emt 0:00:30]} 3. d4 {[%emt 0:00:00]} e6 {[%emt 0:03:30]} 4. Bd3 {[%emt 0:00:30]} Bd6 {[%emt 0:00:30]} 5. O-O {[%emt 0:00:30]} Nbd7 {[%emt 0:00:00]} 6. Nbd2 {[%emt 0:00:30]} c5 {[%emt 0:00:00]} 7. b3 {[%emt 0:02:30]} Qc7 {[%emt 0:04:30]} 8. Bb2 {[%emt 0:01:30]} O-O {[%emt 0:01:30]} 9. c4 {[%emt 0:02:30]} cxd4 {[%emt 0:09:30]} 10. exd4 {[%emt 0:02:30]} b6 {[%emt 0:00:30]} 11. Qc2 {[%emt 0:09:30]} Bb7 {[%emt 0:00:30]} 12. cxd5 {[%emt 0:05:30]} Qxc2 {[%emt 0:01:30]} 13. Bxc2 {[%emt 0:00:00]} Nxd5 {[%emt 0:00:30]} 14. Nc4 {[%emt 0:03:00]} Be7 {[%emt 0:00:30]} 15. Rfe1 {[%emt 0:11:30]} Nf4 {[%emt 0:02:30]} 16. Be4 {[%emt 0:02:30]} Bxe4 {[%emt 0:06:30]} 17. Rxe4 {[%emt 0:00:30]} Nd5 {[%emt 0:00:00]} 18. Nfe5 {[%emt 0:06:30]} N7f6 {[%emt 0:07:00]} 19. Re2 {[%emt 0:02:30]} Rac8 {[%emt 0:00:00]} 20. Rc1 {[%emt 0:02:30]} Rc7 {[%emt 0:01:00]} 21. a3 {[%emt 0:03:30]} Rfc8 {[%emt 0:31:30]} 22. Rec2 {[%emt 0:14:30]} Ne8 {[%emt 0:06:30]} 23. Ne3 {[%emt 0:04:30]} Bg5 {[%emt 0:00:30]} 24. Rxc7 {[%emt 0:00:30]} Nexc7 {[%emt 0:00:30]} 25. Nxd5 {[%emt 0:00:30]} Bxc1 {[%emt 0:00:30]} 26. Ne7+ {[%emt 0:00:30]} Kf8 {[%emt 0:00:30]} 27. Nxc8 {[%emt 0:00:30]} Bxb2 {[%emt 0:00:30]} 28. Nxa7 {[%emt 0:00:30]} Bxa3 {[%emt 0:00:30]} 29. Nd7+ {[%emt 0:00:30]} Ke7 {[%emt 0:00:30]} 30. Nxb6 {[%emt 0:00:30]} 1/2-1/2